[Event "December 12 Late 2023"]
[Site "https://www.chess.com"]
[Date "2023.12.12"]
[Round "5"]
[White "Kovalevsky, Stanislav"]
[Black "Sultanbek, Zeinep"]
[Result "0-1"]
[Board "113"]
[TimeControl "180+1"]
[WhiteFideId "13508598"]
[BlackFideId "13710419"]
[WhiteElo "2474"]
[BlackElo "2247"]
[WhiteTeam "FID"]
[BlackTeam "KAZ"]
[WhiteClock "0:00:00"]
[BlackClock "0:01:00"]

1. e4 {[%clk 0:03:00]}  c5 {[%clk 0:02:59]} 2. c3 {[%clk 0:03:00]}  d5 {[%clk 0:02:59]} 3. exd5 {[%clk 0:03:00]}  Qxd5 {[%clk 0:03:00]} 4. Nf3 {[%clk 0:03:00]}  Nf6 {[%clk 0:03:00]} 5. d4 {[%clk 0:03:00]}  e6 {[%clk 0:02:58]} 6. Be3 {[%clk 0:02:57]}  cxd4 {[%clk 0:02:56]} 7. cxd4 {[%clk 0:02:49]}  Nc6 {[%clk 0:02:54]} 8. Nc3 {[%clk 0:02:47]}  Qd8 {[%clk 0:02:44]} 9. Bd3 {[%clk 0:02:37]}  Be7 {[%clk 0:02:41]} 10. O-O {[%clk 0:02:36]}  O-O {[%clk 0:02:41]} 11. Rc1 {[%clk 0:02:31]}  b6 {[%clk 0:02:40]} 12. Ne4 {[%clk 0:02:26]}  Bb7 {[%clk 0:02:40]} 13. Nfg5 {[%clk 0:01:57]}  Nxe4 {[%clk 0:02:27]} 14. Nxe4 {[%clk 0:01:48]}  Nxd4 {[%clk 0:02:09]} 15. Nd6 {[%clk 0:01:04]}  Qxd6 {[%clk 0:01:40]} 16. Bxd4 {[%clk 0:01:03]}  Rad8 {[%clk 0:01:32]} 17. Bxh7+ {[%clk 0:00:27]}  Kxh7 {[%clk 0:01:23]} 18. Qh5+ {[%clk 0:00:16]}  Kg8 {[%clk 0:01:20]} 19. Bxg7 {[%clk 0:00:16]}  Kxg7 {[%clk 0:01:19]} 20. Rc3 {[%clk 0:00:15]}  Rh8 {[%clk 0:01:17]} 21. Qg4+ {[%clk 0:00:09]}  Kf8 {[%clk 0:01:16]} 22. Rg3 {[%clk 0:00:09]}  Bh4 {[%clk 0:01:09]} 23. Qg7+ {[%clk 0:00:08]}  Ke7 {[%clk 0:01:09]} 24. Rg4 {[%clk 0:00:08]}  Qxh2+ {[%clk 0:01:01]} 25. Kxh2 {[%clk 0:00:00]}  Bxf2+ {[%clk 0:01:00]} 0-1

[Event "December 12 Late 2023"]
[Site "https://www.chess.com"]
[Date "2023.12.12"]
[Round "5"]
[White "Gutierrez Olivares, Daniel"]
[Black "youngdinousaur"]
[Result "1-0"]
[Board "114"]
[TimeControl "180+1"]
[WhiteFideId "2264005"]
[WhiteElo "2460"]
[BlackElo "2255"]
[WhiteTeam "ESP"]
[WhiteClock "0:00:56"]
[BlackClock "0:00:04"]

1. Nf3 {[%clk 0:03:00]}  Nf6 {[%clk 0:02:58]} 2. g3 {[%clk 0:03:01]}  e6 {[%clk 0:02:59]} 3. c4 {[%clk 0:03:01]}  d5 {[%clk 0:02:59]} 4. Bg2 {[%clk 0:03:02]}  Be7 {[%clk 0:02:56]} 5. O-O {[%clk 0:03:03]}  O-O {[%clk 0:02:56]} 6. b3 {[%clk 0:03:02]}  c5 {[%clk 0:02:55]} 7. e3 {[%clk 0:03:02]}  Nc6 {[%clk 0:02:55]} 8. Bb2 {[%clk 0:03:02]}  b6 {[%clk 0:02:56]} 9. Qe2 {[%clk 0:03:01]}  Bb7 {[%clk 0:02:56]} 10. Nc3 {[%clk 0:03:02]}  dxc4 {[%clk 0:02:54]} 11. bxc4 {[%clk 0:03:01]}  Rc8 {[%clk 0:02:48]} 12. d3 {[%clk 0:03:01]}  Qc7 {[%clk 0:02:43]} 13. Rfd1 {[%clk 0:03:01]}  Rfd8 {[%clk 0:02:42]} 14. Nb5 {[%clk 0:03:01]}  Qb8 {[%clk 0:02:41]} 15. Rab1 {[%clk 0:03:02]}  Qa8 {[%clk 0:02:27]} 16. h3 {[%clk 0:03:02]}  Nb4 {[%clk 0:02:22]} 17. Ne1 {[%clk 0:02:28]}  Bxg2 {[%clk 0:02:11]} 18. Nxg2 {[%clk 0:02:29]}  a6 {[%clk 0:02:01]} 19. Nc3 {[%clk 0:02:28]}  Nc6 {[%clk 0:01:58]} 20. f4 {[%clk 0:02:22]}  Qa7 {[%clk 0:01:55]} 21. Kh2 {[%clk 0:02:19]}  h6 {[%clk 0:01:51]} 22. Rd2 {[%clk 0:02:18]}  Rd7 {[%clk 0:01:50]} 23. a3 {[%clk 0:02:16]}  Rcd8 {[%clk 0:01:50]} 24. Rg1 {[%clk 0:02:16]}  Qc7 {[%clk 0:01:41]} 25. Kh1 {[%clk 0:02:03]}  e5 {[%clk 0:01:34]} 26. Nh4 {[%clk 0:01:47]}  Bf8 {[%clk 0:01:26]} 27. Rgd1 {[%clk 0:01:44]}  Qb7 {[%clk 0:00:52]} 28. Kh2 {[%clk 0:01:37]}  Qc7 {[%clk 0:00:52]} 29. Ba1 {[%clk 0:01:27]}  Qb8 {[%clk 0:00:51]} 30. Nf3 {[%clk 0:01:12]}  exf4 {[%clk 0:00:39]} 31. gxf4 {[%clk 0:01:13]}  Qc7 {[%clk 0:00:37]} 32. Rg1 {[%clk 0:01:11]}  Kh8 {[%clk 0:00:36]} 33. Rg3 {[%clk 0:01:08]}  Na5 {[%clk 0:00:35]} 34. Bb2 {[%clk 0:01:00]}  Nb3 {[%clk 0:00:21]} 35. Rd1 {[%clk 0:01:00]}  Na5 {[%clk 0:00:21]} 36. Ne5 {[%clk 0:01:00]}  Re7 {[%clk 0:00:17]} 37. Rdg1 {[%clk 0:00:57]}  Nc6 {[%clk 0:00:17]} 38. Ng4 {[%clk 0:00:54]}  Nxg4+ {[%clk 0:00:16]} 39. Rxg4 {[%clk 0:00:54]}  Red7 {[%clk 0:00:15]} 40. Nd5 {[%clk 0:00:54]}  Rxd5 {[%clk 0:00:12]} 41. cxd5 {[%clk 0:00:54]}  Rxd5 {[%clk 0:00:13]} 42. Bxg7+ {[%clk 0:00:54]}  Bxg7 {[%clk 0:00:13]} 43. Rxg7 {[%clk 0:00:55]}  Rd8 {[%clk 0:00:10]} 44. Qh5 {[%clk 0:00:53]}  Qd6 {[%clk 0:00:10]} 45. R1g6 {[%clk 0:00:54]}  Qxg6 {[%clk 0:00:04]} 46. Rxg6 {[%clk 0:00:55]}  fxg6 {[%clk 0:00:05]} 47. Qxh6+ {[%clk 0:00:55]}  Kg8 {[%clk 0:00:05]} 48. Qxg6+ {[%clk 0:00:56]}  Kf8 {[%clk 0:00:04]} 49. Qxc6 {[%clk 0:00:56]} 1-0

[Event "December 12 Late 2023"]
[Site "https://www.chess.com"]
[Date "2023.12.12"]
[Round "5"]
[White "Cueto, Jonny"]
[Black "Marchesich, Giovanni"]
[Result "0-1"]
[Board "116"]
[TimeControl "180+1"]
[WhiteFideId "3300145"]
[BlackFideId "2824790"]
[WhiteElo "2232"]
[BlackElo "2397"]
[WhiteTeam "BOL"]
[BlackTeam "ITA"]
[WhiteClock "0:00:02"]
[BlackClock "0:01:44"]

1. d4 {[%clk 0:03:00]}  d5 {[%clk 0:02:58]} 2. Bf4 {[%clk 0:03:00]}  Bg4 {[%clk 0:02:56]} 3. h3 {[%clk 0:02:59]}  Bh5 {[%clk 0:02:56]} 4. c4 {[%clk 0:02:54]}  e6 {[%clk 0:02:55]} 5. Qb3 {[%clk 0:02:52]}  Nc6 {[%clk 0:02:43]} 6. Qxb7 {[%clk 0:02:48]}  Nxd4 {[%clk 0:02:39]} 7. Bxc7 {[%clk 0:02:23]}  Qc8 {[%clk 0:02:39]} 8. Qxc8+ {[%clk 0:01:29]}  Rxc8 {[%clk 0:02:38]} 9. g4 {[%clk 0:01:29]}  Bg6 {[%clk 0:02:34]} 10. Ba5 {[%clk 0:01:14]}  Nc2+ {[%clk 0:02:33]} 11. Kd1 {[%clk 0:01:09]}  Nxa1 {[%clk 0:02:34]} 12. e3 {[%clk 0:01:02]}  dxc4 {[%clk 0:02:29]} 13. Nf3 {[%clk 0:01:02]}  Nc2 {[%clk 0:02:26]} 14. Ne5 {[%clk 0:00:59]}  Bb4 {[%clk 0:02:20]} 15. Bxc4 {[%clk 0:00:31]}  Bxa5 {[%clk 0:02:14]} 16. Bb5+ {[%clk 0:00:29]}  Ke7 {[%clk 0:02:09]} 17. h4 {[%clk 0:00:21]}  Nb4 {[%clk 0:02:01]} 18. h5 {[%clk 0:00:19]}  Bxb1 {[%clk 0:02:00]} 19. Ke2 {[%clk 0:00:17]}  Be4 {[%clk 0:01:59]} 20. f3 {[%clk 0:00:16]}  Bd5 {[%clk 0:01:58]} 21. a3 {[%clk 0:00:14]}  Nc6 {[%clk 0:01:57]} 22. Rc1 {[%clk 0:00:12]}  Nf6 {[%clk 0:01:48]} 23. g5 {[%clk 0:00:11]}  Nxe5 {[%clk 0:01:48]} 24. Rg1 {[%clk 0:00:10]}  Nfd7 {[%clk 0:01:45]} 25. Kf2 {[%clk 0:00:04]}  Rc2+ {[%clk 0:01:45]} 26. Kg3 {[%clk 0:00:04]}  Nxf3 {[%clk 0:01:46]} 27. g6 {[%clk 0:00:03]}  Bc7+ {[%clk 0:01:47]} 28. Kh3 {[%clk 0:00:02]}  hxg6 {[%clk 0:01:48]} 29. Kg4 {[%clk 0:00:02]}  gxh5+ {[%clk 0:01:47]} 30. Kh3 {[%clk 0:00:02]}  Rh2# {[%clk 0:01:44]} 0-1

[Event "December 12 Late 2023"]
[Site "https://www.chess.com"]
[Date "2023.12.12"]
[Round "5"]
[White "Wang, Alexander J"]
[Black "Haszon, David"]
[Result "0-1"]
[Board "118"]
[TimeControl "180+1"]
[WhiteFideId "30955270"]
[BlackFideId "733610"]
[WhiteElo "2220"]
[BlackElo "2385"]
[WhiteTeam "USA"]
[BlackTeam "HUN"]
[WhiteClock "0:00:08"]
[BlackClock "0:01:39"]

1. e4 {[%clk 0:03:00]}  e5 {[%clk 0:03:00]} 2. Nf3 {[%clk 0:02:57]}  Nf6 {[%clk 0:03:01]} 3. Nxe5 {[%clk 0:02:54]}  Nxe4 {[%clk 0:03:01]} 4. Qe2 {[%clk 0:02:52]}  Qe7 {[%clk 0:03:01]} 5. Qxe4 {[%clk 0:02:50]}  d6 {[%clk 0:03:02]} 6. d4 {[%clk 0:02:48]}  dxe5 {[%clk 0:03:02]} 7. Qxe5 {[%clk 0:02:49]}  Qxe5+ {[%clk 0:03:02]} 8. dxe5 {[%clk 0:02:50]}  Bf5 {[%clk 0:03:02]} 9. Bd3 {[%clk 0:02:48]}  Bxd3 {[%clk 0:03:02]} 10. cxd3 {[%clk 0:02:49]}  Nc6 {[%clk 0:03:03]} 11. O-O {[%clk 0:02:40]}  O-O-O {[%clk 0:03:02]} 12. f4 {[%clk 0:02:33]}  Bc5+ {[%clk 0:02:52]} 13. Kh1 {[%clk 0:02:28]}  Nb4 {[%clk 0:02:52]} 14. Nc3 {[%clk 0:02:11]}  Nxd3 {[%clk 0:02:46]} 15. Ne4 {[%clk 0:02:07]}  Bb6 {[%clk 0:02:44]} 16. b3 {[%clk 0:01:45]}  Rd4 {[%clk 0:02:41]} 17. Ng3 {[%clk 0:01:34]}  Nxc1 {[%clk 0:02:27]} 18. Raxc1 {[%clk 0:01:05]}  g6 {[%clk 0:02:23]} 19. f5 {[%clk 0:01:02]}  Re8 {[%clk 0:02:23]} 20. fxg6 {[%clk 0:00:47]}  fxg6 {[%clk 0:02:23]} 21. Rfe1 {[%clk 0:00:43]}  Rd5 {[%clk 0:02:19]} 22. e6 {[%clk 0:00:43]}  Rd6 {[%clk 0:02:18]} 23. Ne4 {[%clk 0:00:43]}  Rdxe6 {[%clk 0:02:16]} 24. Nd6+ {[%clk 0:00:43]}  Rxd6 {[%clk 0:02:09]} 25. Rxe8+ {[%clk 0:00:42]}  Kd7 {[%clk 0:02:10]} 26. Ree1 {[%clk 0:00:42]}  Bd4 {[%clk 0:02:07]} 27. Rcd1 {[%clk 0:00:42]}  c5 {[%clk 0:02:07]} 28. h3 {[%clk 0:00:31]}  b5 {[%clk 0:02:07]} 29. Re2 {[%clk 0:00:23]}  a5 {[%clk 0:02:02]} 30. Red2 {[%clk 0:00:18]}  Kc6 {[%clk 0:01:53]} 31. Rc2 {[%clk 0:00:13]}  a4 {[%clk 0:01:45]} 32. b4 {[%clk 0:00:11]}  c4 {[%clk 0:01:42]} 33. Rcd2 {[%clk 0:00:11]}  Be5 {[%clk 0:01:42]} 34. Rxd6+ {[%clk 0:00:10]}  Bxd6 {[%clk 0:01:43]} 35. a3 {[%clk 0:00:10]}  Be5 {[%clk 0:01:41]} 36. Rd2 {[%clk 0:00:09]}  c3 {[%clk 0:01:41]} 37. Rc2 {[%clk 0:00:08]}  Kd5 {[%clk 0:01:41]} 38. Kg1 {[%clk 0:00:09]}  Kc4 {[%clk 0:01:42]} 39. Kf2 {[%clk 0:00:09]}  Kb3 {[%clk 0:01:42]} 40. Re2 {[%clk 0:00:10]}  c2 {[%clk 0:01:40]} 41. Re1 {[%clk 0:00:10]}  Bc3 {[%clk 0:01:38]} 42. Rf1 {[%clk 0:00:09]}  Bd2 {[%clk 0:01:37]} 43. Ke2 {[%clk 0:00:10]}  c1=Q {[%clk 0:01:38]} 44. Rxc1 {[%clk 0:00:09]}  Bxc1 {[%clk 0:01:39]} 45. Kd3 {[%clk 0:00:08]}  Bxa3 {[%clk 0:01:39]} 0-1

[Event "December 12 Late 2023"]
[Site "https://www.chess.com"]
[Date "2023.12.12"]
[Round "5"]
[White "Rian, Kapriaga"]
[Black "Manfroi, Alexander Giannini"]
[Result "1-0"]
[Board "120"]
[TimeControl "180+1"]
[WhiteFideId "7103263"]
[BlackFideId "22739335"]
[WhiteElo "2359"]
[BlackElo "2204"]
[WhiteTeam "INA"]
[BlackTeam "BRA"]
[WhiteClock "0:01:30"]
[BlackClock "0:00:09"]

1. d4 {[%clk 0:03:00]}  Nf6 {[%clk 0:02:59]} 2. Nf3 {[%clk 0:02:59]}  e6 {[%clk 0:02:59]} 3. c4 {[%clk 0:02:54]}  Bb4+ {[%clk 0:03:00]} 4. Bd2 {[%clk 0:02:52]}  a5 {[%clk 0:03:00]} 5. g3 {[%clk 0:02:48]}  d5 {[%clk 0:02:58]} 6. a3 {[%clk 0:02:36]}  Bxd2+ {[%clk 0:02:57]} 7. Nbxd2 {[%clk 0:02:35]}  dxc4 {[%clk 0:02:42]} 8. Nxc4 {[%clk 0:02:34]}  b5 {[%clk 0:02:37]} 9. Nce5 {[%clk 0:02:27]}  O-O {[%clk 0:02:27]} 10. Bg2 {[%clk 0:02:26]}  Bb7 {[%clk 0:02:25]} 11. O-O {[%clk 0:02:25]}  Nbd7 {[%clk 0:02:24]} 12. Nd3 {[%clk 0:02:16]}  Ne4 {[%clk 0:02:16]} 13. Rc1 {[%clk 0:02:15]}  Ndf6 {[%clk 0:02:06]} 14. e3 {[%clk 0:02:12]}  Bd5 {[%clk 0:02:00]} 15. Nfe5 {[%clk 0:02:07]}  Nd7 {[%clk 0:01:37]} 16. Nxd7 {[%clk 0:02:01]}  Qxd7 {[%clk 0:01:38]} 17. Bxe4 {[%clk 0:02:01]}  Bxe4 {[%clk 0:01:37]} 18. Nc5 {[%clk 0:02:01]}  Qd5 {[%clk 0:01:29]} 19. Nxe4 {[%clk 0:02:00]}  Qxe4 {[%clk 0:01:29]} 20. Rxc7 {[%clk 0:02:01]}  b4 {[%clk 0:01:19]} 21. Qc2 {[%clk 0:01:59]}  Qxc2 {[%clk 0:01:05]} 22. Rxc2 {[%clk 0:01:58]}  Rfb8 {[%clk 0:00:49]} 23. a4 {[%clk 0:01:55]}  b3 {[%clk 0:00:46]} 24. Rc4 {[%clk 0:01:54]}  g6 {[%clk 0:00:15]} 25. Rfc1 {[%clk 0:01:53]}  Kg7 {[%clk 0:00:15]} 26. Kf1 {[%clk 0:01:52]}  Rb7 {[%clk 0:00:15]} 27. Ke2 {[%clk 0:01:51]}  Rab8 {[%clk 0:00:16]} 28. Kd3 {[%clk 0:01:51]}  Rb4 {[%clk 0:00:17]} 29. h4 {[%clk 0:01:50]}  h5 {[%clk 0:00:17]} 30. Rxb4 {[%clk 0:01:44]}  axb4 {[%clk 0:00:14]} 31. Rc5 {[%clk 0:01:44]}  Kf6 {[%clk 0:00:12]} 32. Kc4 {[%clk 0:01:42]}  Ke7 {[%clk 0:00:09]} 33. Kxb3 {[%clk 0:01:42]}  Kd6 {[%clk 0:00:09]} 34. e4 {[%clk 0:01:30]}  Rc8 {[%clk 0:00:09]} 1-0

[Event "December 12 Late 2023"]
[Site "https://www.chess.com"]
[Date "2023.12.12"]
[Round "5"]
[White "Jing, Andrew"]
[Black "Gruzman, Ilya"]
[Result "1-0"]
[Board "121"]
[TimeControl "180+1"]
[WhiteFideId "30984076"]
[BlackFideId "2812703"]
[WhiteElo "2179"]
[BlackElo "2358"]
[WhiteTeam "USA"]
[BlackTeam "ISR"]
[WhiteClock "0:02:09"]
[BlackClock "0:00:00"]

1. d4 {[%clk 0:02:58]}  Nf6 {[%clk 0:02:59]} 2. c4 {[%clk 0:02:57]}  g6 {[%clk 0:03:00]} 3. Nc3 {[%clk 0:02:57]}  Bg7 {[%clk 0:03:00]} 4. e4 {[%clk 0:02:57]}  d6 {[%clk 0:03:01]} 5. g3 {[%clk 0:02:54]}  O-O {[%clk 0:03:01]} 6. Bg2 {[%clk 0:02:54]}  c5 {[%clk 0:03:02]} 7. d5 {[%clk 0:02:55]}  e6 {[%clk 0:03:02]} 8. Nge2 {[%clk 0:02:53]}  exd5 {[%clk 0:03:02]} 9. cxd5 {[%clk 0:02:54]}  a6 {[%clk 0:03:00]} 10. a4 {[%clk 0:02:53]}  Re8 {[%clk 0:02:59]} 11. O-O {[%clk 0:02:52]}  Nbd7 {[%clk 0:02:59]} 12. h3 {[%clk 0:02:51]}  c4 {[%clk 0:02:42]} 13. Be3 {[%clk 0:02:45]}  Ne5 {[%clk 0:02:38]} 14. f4 {[%clk 0:02:45]}  Nd3 {[%clk 0:02:38]} 15. b3 {[%clk 0:02:45]}  Nxe4 {[%clk 0:02:18]} 16. Nxe4 {[%clk 0:02:43]}  f5 {[%clk 0:01:39]} 17. bxc4 {[%clk 0:02:35]}  Bxa1 {[%clk 0:01:36]} 18. Qxa1 {[%clk 0:02:34]}  fxe4 {[%clk 0:01:35]} 19. Nd4 {[%clk 0:02:33]}  Bd7 {[%clk 0:01:19]} 20. f5 {[%clk 0:02:32]}  Re5 {[%clk 0:00:42]} 21. Ne6 {[%clk 0:02:23]}  Bxe6 {[%clk 0:00:15]} 22. fxe6 {[%clk 0:02:24]}  Qe7 {[%clk 0:00:11]} 23. Bd4 {[%clk 0:02:13]}  Rf5 {[%clk 0:00:11]} 24. Bxe4 {[%clk 0:02:12]}  Rxf1+ {[%clk 0:00:10]} 25. Qxf1 {[%clk 0:02:12]}  Ne5 {[%clk 0:00:10]} 26. c5 {[%clk 0:02:09]}  Rf8 {[%clk 0:00:09]} 27. Qe2 {[%clk 0:02:10]}  Qg5 {[%clk 0:00:05]} 28. Qg2 {[%clk 0:02:02]}  dxc5 {[%clk 0:00:04]} 29. Bxc5 {[%clk 0:02:02]}  Qc1+ {[%clk 0:00:04]} 30. Kh2 {[%clk 0:02:02]}  Qxc5 {[%clk 0:00:04]} 31. Bb1 {[%clk 0:02:01]}  Qd6 {[%clk 0:00:04]} 32. Ba2 {[%clk 0:02:02]}  Nf3+ {[%clk 0:00:04]} 33. Kh1 {[%clk 0:02:01]}  Qe5 {[%clk 0:00:03]} 34. Qf1 {[%clk 0:01:59]}  Nd2 {[%clk 0:00:01]} 35. Qd1 {[%clk 0:01:59]}  Rf1+ {[%clk 0:00:02]} 36. Qxf1 {[%clk 0:01:59]}  Nxf1 {[%clk 0:00:02]} 37. d6 {[%clk 0:01:59]}  Nd2 {[%clk 0:00:03]} 38. e7+ {[%clk 0:01:59]}  Kg7 {[%clk 0:00:04]} 39. h4 {[%clk 0:01:57]}  Qe1+ {[%clk 0:00:03]} 40. Kh2 {[%clk 0:01:58]}  Nf3+ {[%clk 0:00:03]} 41. Kh3 {[%clk 0:01:59]}  Ng1+ {[%clk 0:00:03]} 42. Kg4 {[%clk 0:01:59]}  Qe2+ {[%clk 0:00:02]} 43. Kf4 {[%clk 0:02:00]}  Qf3+ {[%clk 0:00:01]} 44. Ke5 {[%clk 0:02:01]}  Qe2+ {[%clk 0:00:02]} 45. Kd4 {[%clk 0:02:02]}  Nf3+ {[%clk 0:00:03]} 46. Kc5 {[%clk 0:02:03]}  Qe5+ {[%clk 0:00:03]} 47. Kb6 {[%clk 0:02:04]}  Nd4 {[%clk 0:00:03]} 48. Ka7 {[%clk 0:02:05]}  Qxd6 {[%clk 0:00:04]} 49. e8=N+ {[%clk 0:02:05]}  Kh6 {[%clk 0:00:03]} 50. Nxd6 {[%clk 0:02:06]}  Nf5 {[%clk 0:00:04]} 51. Nxb7 {[%clk 0:02:06]}  Nxg3 {[%clk 0:00:03]} 52. Kxa6 {[%clk 0:02:06]}  Nf5 {[%clk 0:00:03]} 53. Kb6 {[%clk 0:02:06]}  Nxh4 {[%clk 0:00:04]} 54. a5 {[%clk 0:02:06]}  g5 {[%clk 0:00:05]} 55. a6 {[%clk 0:02:07]}  g4 {[%clk 0:00:06]} 56. a7 {[%clk 0:02:07]}  g3 {[%clk 0:00:07]} 57. a8=Q {[%clk 0:02:07]}  g2 {[%clk 0:00:06]} 58. Qf8+ {[%clk 0:02:07]}  Kg5 {[%clk 0:00:05]} 59. Qf2 {[%clk 0:02:08]}  Kg4 {[%clk 0:00:04]} 60. Be6+ {[%clk 0:02:07]}  Kg5 {[%clk 0:00:03]} 61. Qg3+ {[%clk 0:02:07]}  Kh5 {[%clk 0:00:02]} 62. Bf7+ {[%clk 0:02:08]}  Kh6 {[%clk 0:00:02]} 63. Qxh4+ {[%clk 0:02:08]}  Kg7 {[%clk 0:00:03]} 64. Qg3+ {[%clk 0:02:08]}  Kxf7 {[%clk 0:00:00]} 65. Qxg2 {[%clk 0:02:09]} 1-0

[Event "December 12 Late 2023"]
[Site "https://www.chess.com"]
[Date "2023.12.12"]
[Round "5"]
[White "Khokhlova, Daria"]
[Black "Nadera, Barlo A."]
[Result "0-1"]
[Board "122"]
[TimeControl "180+1"]
[WhiteFideId "24182729"]
[BlackFideId "5200598"]
[WhiteElo "2336"]
[BlackElo "2179"]
[WhiteTeam "FID"]
[BlackTeam "PHI"]
[WhiteClock "0:00:00"]
[BlackClock "0:00:56"]

1. d4 {[%clk 0:03:00]}  d5 {[%clk 0:02:59]} 2. c4 {[%clk 0:03:00]}  e6 {[%clk 0:02:58]} 3. Nf3 {[%clk 0:03:00]}  c6 {[%clk 0:02:58]} 4. e3 {[%clk 0:02:59]}  Nf6 {[%clk 0:02:58]} 5. b3 {[%clk 0:02:58]}  Nbd7 {[%clk 0:02:58]} 6. Bd3 {[%clk 0:02:58]}  Be7 {[%clk 0:02:54]} 7. Bb2 {[%clk 0:02:51]}  O-O {[%clk 0:02:53]} 8. Nc3 {[%clk 0:02:49]}  b6 {[%clk 0:02:53]} 9. O-O {[%clk 0:02:48]}  Bb7 {[%clk 0:02:53]} 10. Ne5 {[%clk 0:02:48]}  c5 {[%clk 0:02:50]} 11. cxd5 {[%clk 0:02:39]}  Nxe5 {[%clk 0:02:39]} 12. dxe5 {[%clk 0:02:38]}  Nxd5 {[%clk 0:02:39]} 13. Qe2 {[%clk 0:02:18]}  Nxc3 {[%clk 0:02:35]} 14. Bxc3 {[%clk 0:02:17]}  Qd5 {[%clk 0:02:33]} 15. f4 {[%clk 0:02:13]}  Rfd8 {[%clk 0:02:30]} 16. Bc2 {[%clk 0:02:11]}  Qc6 {[%clk 0:02:23]} 17. Rf3 {[%clk 0:01:56]}  g6 {[%clk 0:02:09]} 18. e4 {[%clk 0:01:52]}  b5 {[%clk 0:01:52]} 19. f5 {[%clk 0:01:36]}  exf5 {[%clk 0:01:36]} 20. exf5 {[%clk 0:01:34]}  c4 {[%clk 0:01:35]} 21. fxg6 {[%clk 0:01:15]}  hxg6 {[%clk 0:01:32]} 22. Rh3 {[%clk 0:01:09]}  b4 {[%clk 0:01:27]} 23. e6 {[%clk 0:00:30]}  Bc5+ {[%clk 0:01:17]} 24. Kh1 {[%clk 0:00:17]}  bxc3 {[%clk 0:01:17]} 25. exf7+ {[%clk 0:00:16]}  Kg7 {[%clk 0:01:16]} 26. Qe5+ {[%clk 0:00:13]}  Qf6 {[%clk 0:01:09]} 27. Rh7+ {[%clk 0:00:13]}  Kxh7 {[%clk 0:01:08]} 28. Qxf6 {[%clk 0:00:14]}  Rd6 {[%clk 0:01:07]} 29. Bxg6+ {[%clk 0:00:13]}  Kh6 {[%clk 0:01:06]} 30. f8=Q+ {[%clk 0:00:13]}  Rxf8 {[%clk 0:01:05]} 31. Qxf8+ {[%clk 0:00:14]}  Kxg6 {[%clk 0:01:05]} 32. Qg8+ {[%clk 0:00:13]}  Kh6 {[%clk 0:01:01]} 33. Rf1 {[%clk 0:00:13]}  Rg6 {[%clk 0:00:59]} 34. Qh8+ {[%clk 0:00:13]}  Kg5 {[%clk 0:00:58]} 35. h4+ {[%clk 0:00:13]}  Kg4 {[%clk 0:00:57]} 36. h5 {[%clk 0:00:00]}  Rg5 {[%clk 0:00:56]} 0-1

[Event "December 12 Late 2023"]
[Site "https://www.chess.com"]
[Date "2023.12.12"]
[Round "5"]
[White "Gerbelli Neto, Eduardo"]
[Black "Tokat, Nehir"]
[Result "1-0"]
[Board "123"]
[TimeControl "180+1"]
[WhiteFideId "2103281"]
[BlackFideId "34557555"]
[WhiteElo "2335"]
[BlackElo "2167"]
[WhiteTeam "BRA"]
[BlackTeam "TUR"]
[WhiteClock "0:02:05"]
[BlackClock "0:00:41"]

1. e4 {[%clk 0:03:00]}  c5 {[%clk 0:02:59]} 2. Nc3 {[%clk 0:03:00]}  Nc6 {[%clk 0:02:55]} 3. f4 {[%clk 0:03:01]}  g6 {[%clk 0:02:54]} 4. Nf3 {[%clk 0:03:02]}  Bg7 {[%clk 0:02:53]} 5. Bc4 {[%clk 0:03:02]}  e6 {[%clk 0:02:53]} 6. f5 {[%clk 0:03:03]}  Nge7 {[%clk 0:02:49]} 7. fxe6 {[%clk 0:03:03]}  fxe6 {[%clk 0:02:43]} 8. d3 {[%clk 0:03:03]}  O-O {[%clk 0:02:43]} 9. O-O {[%clk 0:03:03]}  d5 {[%clk 0:02:43]} 10. Bb3 {[%clk 0:03:03]}  Kh8 {[%clk 0:02:42]} 11. Bg5 {[%clk 0:02:58]}  h6 {[%clk 0:02:36]} 12. Bh4 {[%clk 0:02:58]}  g5 {[%clk 0:02:35]} 13. Bxg5 {[%clk 0:02:54]}  hxg5 {[%clk 0:02:22]} 14. Nxg5 {[%clk 0:02:54]}  Qe8 {[%clk 0:02:21]} 15. Qg4 {[%clk 0:02:34]}  Qg6 {[%clk 0:01:58]} 16. exd5 {[%clk 0:02:26]}  exd5 {[%clk 0:01:00]} 17. Qh4+ {[%clk 0:02:07]}  Qh6 {[%clk 0:00:49]} 18. Rxf8+ {[%clk 0:02:06]}  Bxf8 {[%clk 0:00:41]} 19. Nf7+ {[%clk 0:02:05]} 1-0

[Event "December 12 Late 2023"]
[Site "https://www.chess.com"]
[Date "2023.12.12"]
[Round "5"]
[White "Demina, Marya"]
[Black "Ramadoss, Ashokkumar"]
[Result "0-1"]
[Board "126"]
[TimeControl "180+1"]
[WhiteFideId "4195671"]
[BlackFideId "5040990"]
[WhiteElo "2146"]
[BlackElo "2323"]
[WhiteTeam "RUS"]
[BlackTeam "IND"]
[WhiteClock "0:00:00"]
[BlackClock "0:00:18"]

1. d4 {[%clk 0:02:59]}  Nf6 {[%clk 0:02:59]} 2. Nf3 {[%clk 0:03:00]}  g6 {[%clk 0:02:58]} 3. c4 {[%clk 0:02:59]}  c5 {[%clk 0:02:58]} 4. Nc3 {[%clk 0:02:58]}  Bg7 {[%clk 0:02:58]} 5. e4 {[%clk 0:02:56]}  O-O {[%clk 0:02:57]} 6. Be2 {[%clk 0:02:56]}  d6 {[%clk 0:02:57]} 7. O-O {[%clk 0:02:56]}  Nc6 {[%clk 0:02:57]} 8. d5 {[%clk 0:02:48]}  Nb8 {[%clk 0:02:57]} 9. Re1 {[%clk 0:02:48]}  b5 {[%clk 0:02:56]} 10. cxb5 {[%clk 0:02:45]}  a6 {[%clk 0:02:56]} 11. e5 {[%clk 0:02:34]}  Ne8 {[%clk 0:02:45]} 12. Bf4 {[%clk 0:02:19]}  Nd7 {[%clk 0:02:38]} 13. e6 {[%clk 0:01:38]}  fxe6 {[%clk 0:02:37]} 14. dxe6 {[%clk 0:01:38]}  Rxf4 {[%clk 0:02:38]} 15. exd7 {[%clk 0:01:34]}  Bxd7 {[%clk 0:02:23]} 16. Bc4+ {[%clk 0:01:24]}  e6 {[%clk 0:01:58]} 17. Bxe6+ {[%clk 0:01:22]}  Bxe6 {[%clk 0:01:59]} 18. Rxe6 {[%clk 0:01:21]}  Kh8 {[%clk 0:01:43]} 19. h4 {[%clk 0:01:08]}  axb5 {[%clk 0:01:38]} 20. Ng5 {[%clk 0:00:52]}  Bd4 {[%clk 0:01:38]} 21. Nce4 {[%clk 0:00:49]}  d5 {[%clk 0:01:26]} 22. g3 {[%clk 0:00:46]}  Rf5 {[%clk 0:01:21]} 23. g4 {[%clk 0:00:41]}  Rf8 {[%clk 0:01:06]} 24. Qe2 {[%clk 0:00:23]}  dxe4 {[%clk 0:01:00]} 25. Rxe4 {[%clk 0:00:22]}  Nf6 {[%clk 0:00:58]} 26. Re7 {[%clk 0:00:21]}  Bxf2+ {[%clk 0:00:34]} 27. Kf1 {[%clk 0:00:20]}  Qd4 {[%clk 0:00:27]} 28. Rd1 {[%clk 0:00:14]}  Qf4 {[%clk 0:00:24]} 29. Qxf2 {[%clk 0:00:09]}  Qxf2+ {[%clk 0:00:20]} 30. Kxf2 {[%clk 0:00:09]}  Ne4+ {[%clk 0:00:16]} 31. Ke3 {[%clk 0:00:08]}  Nxg5 {[%clk 0:00:16]} 32. hxg5 {[%clk 0:00:07]}  Rae8 {[%clk 0:00:17]} 33. Rd7 {[%clk 0:00:07]}  Rxe7+ {[%clk 0:00:17]} 34. Rxe7 {[%clk 0:00:07]}  Ra8 {[%clk 0:00:18]} 35. a3 {[%clk 0:00:06]}  b4 {[%clk 0:00:18]} 36. Rc7 {[%clk 0:00:06]}  bxa3 {[%clk 0:00:17]} 37. bxa3 {[%clk 0:00:04]}  Rxa3+ {[%clk 0:00:18]} 38. Kf4 {[%clk 0:00:04]}  Ra4+ {[%clk 0:00:18]} 39. Ke5 {[%clk 0:00:03]}  Rxg4 {[%clk 0:00:17]} 40. Ke6 {[%clk 0:00:03]}  Rf4 {[%clk 0:00:16]} 41. Rc8+ {[%clk 0:00:02]}  Kg7 {[%clk 0:00:16]} 42. Rc7+ {[%clk 0:00:02]}  Kg8 {[%clk 0:00:16]} 43. Rc8+ {[%clk 0:00:02]}  Rf8 {[%clk 0:00:16]} 44. Rxc5 {[%clk 0:00:01]}  Re8+ {[%clk 0:00:17]} 45. Kf6 {[%clk 0:00:01]}  Rf8+ {[%clk 0:00:18]} 46. Ke6 {[%clk 0:00:01]}  Rf7 {[%clk 0:00:17]} 47. Rc8+ {[%clk 0:00:01]}  Kg7 {[%clk 0:00:18]} 48. Rd8 {[%clk 0:00:01]}  Ra7 {[%clk 0:00:18]} 49. Rc8 {[%clk 0:00:00]}  Ra6+ {[%clk 0:00:18]} 0-1